bitfinex-derivatives/quotes_SOLF0:USTF0_20250109
["timestamp","ask_amount","ask_price","bid_price","bid_amount"]
[1736394919666,2.5732,194.39,194.34,2.5738]
[1736394920071,6.50388599,194.37,194.29,30.0138292]
[1736394920375,5.5936,194.36,194.31,6.50388599]
[1736394921072,5.5936,194.36,194.31,9.07808599]
[1736394922274,5.5936,194.36,194.32,2.574]
[1736394923275,3.02,194.36,194.31,6.50388599]
[1736394923475,6.50388599,194.35,194.3,2.5743]
[1736394923775,6.50388599,194.35,194.29,6.50388599]
[1736394923974,2.574,194.34,194.29,6.50388599]
[1736394925176,2.574,194.34,194.3,2.5744]
[1736394928682,3.02,194.33,194.3,2.5744]
[1736394929684,3.02,194.33,194.24,4.9757672]
[1736394929685,9.52388599,194.33,194.27,6.50388599]
[1736394930074,2.5742,194.32,194.28,2.5746]
[1736394932186,9.52388599,194.33,194.27,6.50388599]
[1736394932385,12.09788599,194.33,194.29,2.5745]
[1736394938587,3.02,194.33,194.27,6.50388599]
[1736394938888,3.1152,194.4,194.29,6.50388599]
[1736394938889,3.02,194.34,194.29,6.50388599]
[1736394939689,9.52388599,194.34,194.29,6.50388599]
[1736394940189,9.52388599,194.34,194.31,2.5742]
[1736394941282,6.50388599,194.34,194.29,6.50388599]
[1736394941488,12.09758599,194.35,194.3,2.5743]
[1736394943188,12.09758599,194.35,194.29,6.50388599]
[1736394943389,12.09758599,194.35,194.31,2.5741]
[1736394944186,9.07758599,194.35,194.31,2.5741]
[1736394947089,9.07758599,194.35,194.31,9.73356133]
[1736394948591,9.07758599,194.35,194.32,4.94578048]
[1736394949288,9.07758599,194.35,194.31,30.9816292]
[1736394950190,9.07758599,194.35,194.32,7.15946133]
[1736394951793,9.07758599,194.35,194.31,9.73356133]
[1736394952494,9.07758599,194.35,194.32,12.11272123]
[1736394953294,9.07758599,194.35,194.32,7.15946133]
[1736394954988,9.07758599,194.35,194.33,4.95703373]
[1736394955896,9.07758599,194.35,194.32,28.4075292]
[1736394957595,9.07758599,194.35,194.33,4.9595461]
[1736394958594,9.07758599,194.35,194.32,28.4075292]
[1736394959095,2.5739,194.34,194.32,28.4075292]
[1736394959292,2.5739,194.34,194.32,7.15946133]
[1736394970001,2.5739,194.34,194.33,4.96198499]
[1736394970396,3.02,194.39,194.33,11.46587098]
[1736394970701,6.50388599,194.4,194.33,11.46587098]
[1736394970901,3.02,194.39,194.33,11.46587098]
[1736394971100,3.02,194.39,194.33,120.32409404]
[1736394971101,2.5734,194.38,194.33,120.32409404]
[1736394971806,3.02,194.39,194.35,7.17415802]
[1736394972012,2.5735,194.37,194.35,7.17415802]
[1736394973507,9.52388599,194.4,194.35,7.17415802]
[1736394973708,2.5734,194.38,194.35,7.17415802]
[1736394976608,1.4788,194.41,194.35,7.17415802]
[1736394976609,2.573,194.41,194.37,2.5734]
[1736394976814,3.02,194.43,194.39,6.50388599]
[1736394977310,2.5729,194.42,194.39,6.50388599]
[1736394978410,6.50388599,194.4,194.38,7.17415802]
[1736394979015,2.5733,194.39,194.35,7.17415802]
[1736394979513,2.5733,194.39,194.36,6.50388599]
[1736394979712,2.5731,194.4,194.36,6.50388599]
[1736394981014,2.5731,194.4,194.36,13.67804401]
[1736394981312,2.5729,194.42,194.36,13.67804401]
[1736394982110,2.5729,194.42,194.38,2.5733]
[1736394983915,2.5731,194.4,194.36,28.69663208]
[1736394984316,2.5731,194.4,194.35,9.74775802]
[1736394985711,2.5731,194.4,194.36,7.52511846]
[1736394986113,2.5731,194.4,194.36,14.69927648]
[1736394986814,2.5731,194.4,194.36,9.74775802]
[1736394987015,2.5731,194.4,194.36,7.17415802]
[1736394987714,2.5731,194.4,194.35,31.27033208]
[1736394988715,2.5731,194.4,194.35,9.74785802]
[1736394990814,2.5731,194.4,194.36,4.95125017]
[1736394991020,2.5731,194.4,194.36,7.52485017]
[1736394991716,3.02,194.41,194.37,4.95125017]
[1736394992216,3.02,194.41,194.36,16.25164401]
[1736394993115,5.593,194.41,194.36,16.25164401]
[1736394994515,5.593,194.41,194.36,9.07748599]
[1736394996114,5.593,194.41,194.36,16.25164401]
[1736394996817,5.593,194.41,194.37,4.95182111]
[1736394997415,2.5732,194.39,194.36,28.69663208]
[1736394997615,6.50388599,194.38,194.36,28.69663208]
[1736394997922,2.5736,194.36,194.35,56.66151433]
[1736394998115,12.09748599,194.36,194.35,49.40091433]
[1736394998315,12.09748599,194.36,194.3,49.40091433]
[1736394998316,9.52388599,194.36,194.3,49.40091433]
[1736394998521,9.07808599,194.32,194.3,49.40091433]
[1736394999119,9.07808599,194.32,194.26,3.59940141]
[1736394999421,9.07808599,194.32,194.27,2.5747]
[1736395002219,9.07808599,194.32,194.26,3.59940141]
[1736395002418,9.07778599,194.34,194.3,2.5744]
[1736395004118,6.50388599,194.37,194.31,6.50388599]
[1736395004321,9.52388599,194.37,194.31,6.50388599]
[1736395006122,12.09748599,194.37,194.32,2.5741]
[1736395006919,9.52388599,194.37,194.33,2.5739]
[1736395008717,60.53473497,194.41,194.35,6.50388599]
[1736395008921,3.02,194.39,194.35,6.50388599]
[1736395010022,60.53473497,194.41,194.35,6.50388599]
[1736395010226,3.02,194.4,194.36,2.5736]
[1736395010616,3.02,194.4,194.35,6.50388599]
[1736395010824,3.02,194.4,194.37,9.07728599]
[1736395011029,60.53473497,194.41,194.37,9.07728599]
[1736395011326,63.55473497,194.41,194.37,9.07728599]
[1736395011926,66.12773497,194.41,194.37,9.07728599]
[1736395012124,66.12773497,194.41,194.37,2.5734]
[1736395012325,6.50388599,194.4,194.36,2.5736]
[1736395015731,66.12773497,194.41,194.36,2.5736]
[1736395016129,66.12773497,194.41,194.37,2.5734]
[1736395016429,80.3,194.56,194.4,6.50388599]
[1736395016731,3.02,194.47,194.42,6.50388599]
[1736395017734,2.5719,194.49,194.42,6.50388599]
[1736395017933,5.5919,194.49,194.42,6.50388599]
[1736395018133,5.5919,194.49,194.44,2.5724]
[1736395019433,3.02,194.49,194.42,6.50388599]
[1736395019737,3.02,194.49,194.45,2.5723]
[1736395020836,3.02,194.49,194.46,2.5722]
[1736395021834,6.50388599,194.5,194.46,2.5722]
[1736395022438,6.50388599,194.5,194.45,2.5724]
[1736395022835,3.02,194.51,194.44,6.50388599]
[1736395023035,3.02,194.51,194.48,6.50388599]
[1736395023542,6.50388599,194.54,194.48,6.50388599]
[1736395024445,6.50388599,194.54,194.49,2.5718]
[1736395024945,6.50388599,194.5,194.42,3.02]
[1736395025139,2.5719,194.49,194.43,9.07648599]
[1736395025841,2.5719,194.49,194.44,2.5725]
[1736395029949,2.5719,194.49,194.45,2.5724]
[1736395032246,9.52388599,194.5,194.46,2.5723]
[1736395032247,12.09568599,194.5,194.46,2.5723]
[1736395032545,9.52388599,194.53,194.49,6.50388599]
[1736395034251,9.52388599,194.53,194.5,2.5717]
[1736395034747,9.52388599,194.53,194.49,6.50388599]
[1736395034946,9.52388599,194.53,194.42,3.02]
[1736395035146,6.50388599,194.51,194.45,6.50388599]
[1736395035944,2.5718,194.5,194.45,9.07628599]
[1736395036157,3.02,194.53,194.45,6.50388599]
[1736395036460,6.50388599,194.51,194.45,6.50388599]
[1736395037163,2.5716,194.51,194.47,9.07598599]
[1736395037364,3.02,194.52,194.47,6.50388599]
[1736395037963,3.02,194.52,194.48,2.572]
[1736395039152,5.5915,194.52,194.48,2.572]
[1736395040261,5.5915,194.52,194.47,9.07598599]
[1736395041763,6.50388599,194.51,194.47,2.5721]
[1736395041960,9.07548599,194.51,194.47,2.5721]
[1736395042658,9.07548599,194.51,194.45,6.50388599]
[1736395042659,6.50388599,194.49,194.43,6.50388599]
[1736395042866,6.50388599,194.47,194.44,2.5725]
[1736395044870,2.572,194.48,194.44,2.5725]
[1736395046664,6.50388599,194.45,194.39,44.91413297]
[1736395046863,3.02,194.44,194.4,2.573]
[1736395050166,2.9132,194.51,194.42,2.5727]
[1736395050167,2.5721,194.48,194.42,2.5727]
[1736395050369,2.5721,194.48,194.41,6.50388599]
[1736395050370,9.52388599,194.48,194.41,6.50388599]
[1736395050966,6.50388599,194.46,194.41,6.50388599]
[1736395052069,9.07618599,194.46,194.42,2.5727]
[1736395052364,3.02,194.48,194.38,27.8440985]
[1736395052365,6.50388599,194.44,194.38,27.8440985]
[1736395052668,9.07648599,194.44,194.4,2.573]
[1736395054669,6.50388599,194.44,194.37,21.34021251]
[1736395054972,2.5727,194.43,194.39,2.5732]
[1736395055564,6.50388599,194.42,194.37,21.34021251]
[1736395055766,6.50388599,194.42,194.36,21.34021251]
[1736395056066,3.02,194.43,194.36,21.34021251]
[1736395056067,6.50388599,194.4,194.36,21.34021251]
[1736395056263,6.50388599,194.38,194.36,21.34021251]
[1736395056664,6.50388599,194.38,194.34,2.5738]
[1736395056967,9.52388599,194.38,194.32,27.8440985]
[1736395057262,9.52388599,194.38,194.32,21.34021251]
[1736395057467,6.50388599,194.36,194.32,21.34021251]
[1736395057664,6.50388599,194.34,194.3,21.34021251]
[1736395058269,6.50388599,194.36,194.32,2.5741]
[1736395058569,2.5735,194.37,194.32,2.5741]
[1736395063173,6.50388599,194.36,194.32,2.5741]
[1736395064970,9.52388599,194.36,194.32,2.5741]
[1736395070779,6.50388599,194.36,194.3,6.50388599]
[1736395071279,6.50388599,194.4,194.34,6.50388599]
[1736395071478,3.02,194.39,194.35,2.5737]
[1736395072785,6.50388599,194.38,194.35,2.5737]
[1736395073484,6.50388599,194.38,194.34,2.5738]
[1736395074178,2.5735,194.37,194.32,2.5741]
[1736395074376,6.50388599,194.36,194.3,3.1756]
[1736395074580,6.50388599,194.34,194.3,3.1756]
[1736395074781,9.07778599,194.34,194.3,3.1756]
[1736395075686,9.07778599,194.34,194.3,5.75]
[1736395077281,2.5736,194.36,194.32,2.5741]
[1736395077486,6.50388599,194.37,194.32,2.5741]
[1736395078487,2.5736,194.37,194.33,2.574]
[1736395079285,6.50388599,194.38,194.31,6.50388599]
[1736395079484,3.02,194.39,194.34,2.5738]
[1736395079990,6.50388599,194.4,194.34,2.5738]
[1736395080190,9.52388599,194.4,194.34,2.5738]
[1736395080491,6.50388599,194.38,194.33,9.07788599]
[1736395082086,9.07728599,194.38,194.33,9.07788599]
[1736395082689,9.07728599,194.38,194.34,2.5738]
[1736395082891,6.50388599,194.38,194.34,2.5738]
[1736395083692,2.5732,194.39,194.35,2.5737]
[1736395083891,12.09698599,194.4,194.35,2.5737]
[1736395084692,9.07698599,194.4,194.35,2.5737]
[1736395084891,2.5732,194.39,194.34,2.5738]
[1736395085693,9.52388599,194.4,194.35,2.5737]
[1736395086793,2.5732,194.39,194.35,2.5737]
[1736395087093,2.5732,194.39,194.33,6.50388599]
[1736395087292,2.5732,194.39,194.34,2.5738]
[1736395089588,60.26425408,194.43,194.36,2.5736]
[1736395089893,9.52388599,194.42,194.36,6.50388599]
[1736395090096,12.09668599,194.42,194.37,2.5734]
[1736395090592,9.07668599,194.42,194.37,2.5734]
[1736395092492,9.07668599,194.42,194.36,6.50388599]
[1736395092696,9.07668599,194.42,194.38,2.5733]
[1736395095896,65.85695408,194.43,194.39,2.5732]
[1736395096094,60.26425408,194.43,194.38,6.50388599]
[1736395097095,60.26425408,194.43,194.4,2.5729]
[1736395101701,60.26425408,194.43,194.38,6.50388599]
[1736395101901,60.26425408,194.43,194.41,2.5729]
[1736395111510,60.26425408,194.43,194.42,2.5728]
[1736395111710,3.0,194.46,194.4,6.50388599]
[1736395112100,3.0,194.46,194.41,2.5728]
[1736395112306,3.0,194.46,194.4,6.50388599]
[1736395112606,6.50388599,194.45,194.4,6.50388599]
[1736395113213,3.0,194.46,194.42,2.5727]
[1736395115012,6.50388599,194.45,194.42,2.5727]
[1736395116911,6.50388599,194.47,194.43,2.5726]
[1736395124319,6.50388599,194.45,194.42,2.5728]
[1736395126122,9.07608599,194.47,194.42,2.5728]
[1736395130119,6.50388599,194.45,194.42,2.5728]
[1736395130318,6.50388599,194.43,194.4,7.15030623]
[1736395130720,6.50388599,194.43,194.39,7.15030623]
[1736395131319,6.50388599,194.43,194.38,28.49051874]
[1736395131725,6.50388599,194.43,194.39,2.5731]
[1736395136631,6.50388599,194.43,194.38,13.65419222]
[1736395136831,6.50388599,194.43,194.4,2.573]
[1736395138232,9.07658599,194.43,194.4,2.573]
[1736395139236,6.50388599,194.43,194.4,2.573]
[1736395145438,6.50388599,194.43,194.41,2.5729]
[1736395147839,2.5722,194.47,194.39,6.50388599]
[1736395148043,3.0,194.48,194.41,6.50388599]
[1736395148242,6.50388599,194.48,194.41,6.50388599]
[1736395148544,9.50388599,194.48,194.45,2.5724]
[1736395148838,6.50388599,194.48,194.45,2.5724]
[1736395152738,6.50388599,194.48,194.44,2.5725]
[1736395152944,6.50388599,194.48,194.41,13.65419222]
[1736395153541,6.50388599,194.48,194.42,4.78683957]
[1736395153741,6.50388599,194.46,194.42,4.78683957]
[1736395153935,6.50388599,194.44,194.42,4.78683957]
[1736395154440,6.50388599,194.44,194.42,2.5727]
[1736395154744,6.50388599,194.46,194.4,6.50388599]
[1736395155140,6.50388599,194.46,194.43,2.5726]
[1736395163649,15.44,194.65,194.42,6.50388599]
[1736395163849,9.07558599,194.51,194.46,2.5722]
[1736395165047,6.50388599,194.51,194.47,2.572]
[1736395167856,60.57086972,194.54,194.46,6.50388599]
[1736395168159,69.64605571,194.54,194.48,9.07578599]
[1736395168356,60.57086972,194.54,194.48,6.50388599]
[1736395169553,6.50388599,194.53,194.48,6.50388599]
[1736395170160,6.50388599,194.53,194.49,2.5718]
[1736395171760,60.57086972,194.54,194.51,2.5716]
[1736395177854,3.1458,194.62,194.53,2.5713]
[1736395178055,3.92611964,194.61,194.52,6.50388599]
[1736395178356,6.50388599,194.58,194.52,6.50388599]
[1736395179060,9.07458599,194.58,194.53,2.5713]
[1736395179763,9.07428599,194.6,194.55,2.5711]
[1736395182665,6.50388599,194.6,194.54,6.50388599]
[1736395182858,6.50388599,194.6,194.56,2.5708]
[1736395183059,57.43186327,194.63,194.56,6.50388599]
[1736395183265,63.93574926,194.63,194.56,6.50388599]
[1736395184065,66.50574926,194.63,194.58,2.5706]
[1736395185563,6.50388599,194.61,194.58,2.5706]
[1736395188272,6.50388599,194.61,194.56,6.50388599]
[1736395188466,6.50388599,194.61,194.58,2.5707]
[1736395191161,5.1365,194.77,194.58,6.50388599]
[1736395191365,3.92611266,194.7,194.61,2.5703]
[1736395191561,6.50388599,194.67,194.61,2.5703]
[1736395191865,9.07388599,194.63,194.54,3.0]
[1736395192164,9.07388599,194.63,194.57,6.50388599]
[1736395192368,9.07388599,194.63,194.54,3.0]
[1736395192566,9.07388599,194.63,194.57,6.50388599]
[1736395192968,9.07388599,194.63,194.54,3.0]
[1736395193168,9.07388599,194.63,194.58,2.5706]
[1736395193361,9.50388599,194.63,194.52,1.6041]
[1736395193568,6.50388599,194.57,194.51,10.12630623]
[1736395193761,6.50388599,194.57,194.53,2.5713]
[1736395195066,9.07468599,194.57,194.53,2.5713]
[1736395195871,6.50388599,194.57,194.54,2.5712]
[1736395196070,5.5707,194.58,194.54,2.5712]
[1736395199269,3.0,194.58,194.48,47.58315148]
[1736395199469,19.9559,194.62,194.48,30.99525148]
[1736395199674,6.50388599,194.49,194.45,113.68056814]
[1736395199975,9.07618599,194.46,194.45,107.17668215]
[1736395200164,9.07618599,194.46,194.45,76.55041741]
[1736395200364,6.50388599,194.46,194.36,2.5735]
[1736395200572,6.50388599,194.4,194.36,2.5735]
[1736395200874,3.0,194.39,194.36,2.5735]
[1736395201476,3.0,194.39,194.33,6.50388599]
[1736395201477,9.50388599,194.39,194.37,2.5734]
[1736395202175,9.50388599,194.39,194.35,2.5736]
[1736395202377,6.50388599,194.37,194.35,2.5736]
[1736395203777,80.22,194.55,194.35,6.50388599]
[1736395203970,3.0,194.54,194.39,6.50388599]
[1736395204473,6.50388599,194.47,194.39,6.50388599]
[1736395204673,9.50388599,194.47,194.39,6.50388599]
[1736395205073,80.26,194.6,194.45,6.50388599]
[1736395205274,6.50388599,194.52,194.47,6.50388599]
[1736395205472,3.0,194.57,194.51,2.5715]
[1736395205678,6.50388599,194.55,194.49,6.50388599]
[1736395205873,194.0,194.68,194.47,3.0045]
[1736395205874,6.50388599,194.57,194.51,6.50388599]
[1736395206378,6.50388599,194.57,194.53,2.5713]
[1736395206571,6.50388599,194.55,194.53,2.5713]
[1736395207578,3.0,194.61,194.51,6.50388599]
[1736395207775,80.26,194.7,194.53,6.50388599]
[1736395208080,80.26,194.7,194.55,6.50388599]
[1736395208280,3.0,194.69,194.55,6.50388599]
[1736395208479,6.50388599,194.62,194.55,6.50388599]
[1736395208980,6.50388599,194.62,194.59,2.5705]
[1736395209170,3.0,194.69,194.59,6.50388599]
[1736395209171,6.50388599,194.65,194.59,6.50388599]
[1736395209481,2.5695,194.67,194.6,2.5703]
[1736395209673,10.14569825,194.62,194.56,3.1319]
[1736395209876,10.14569825,194.62,194.56,6.1319]
[1736395210080,15.71589825,194.62,194.47,192.4979]
[1736395210379,13.14569825,194.62,194.48,16.28429825]
[1736395211184,15.71599825,194.62,194.52,2.5714]
[1736395211379,13.14569825,194.62,194.48,16.28429825]
[1736395212683,13.14569825,194.62,194.58,2.5705]
[1736395212883,3.0,194.62,194.54,10.14569825]
[1736395213288,3.0,194.62,194.56,2.5709]
[1736395213490,10.14569825,194.65,194.54,10.14569825]
[1736395213682,3.0,194.67,194.54,10.14569825]
[1736395214089,12.71509825,194.68,194.62,2.5701]
[1736395214289,12.71509825,194.68,194.58,3.0]
[1736395214487,12.71509825,194.68,194.59,3.1426]
[1736395214687,10.14569825,194.68,194.59,3.1426]
[1736395214889,10.14569825,194.68,194.62,2.57]
[1736395216183,10.14569825,194.68,194.63,2.57]
[1736395217283,19.41569825,194.68,194.63,2.57]
[1736395219193,19.41569825,194.68,194.61,2.5701]
[1736395220189,2.5695,194.67,194.61,2.5701]
[1736395220993,2.5697,194.66,194.59,5.713]
[1736395221889,2.5697,194.66,194.59,3.1426]
[1736395222089,2.5697,194.66,194.6,2.5704]
[1736395223595,10.14569825,194.63,194.55,1.4876]
[1736395224905,2.5703,194.62,194.56,2.5708]
[1736395225504,2.5703,194.62,194.55,1.4876]
[1736395226000,12.71569825,194.63,194.55,1.4876]
[1736395226502,10.14569825,194.63,194.55,1.4876]
[1736395226898,10.14569825,194.63,194.51,13.21379825]
[1736395227106,3.0,194.65,194.51,3.0681]
[1736395227107,10.14569825,194.57,194.51,3.0681]
[1736395227306,10.14569825,194.57,194.48,1.5178]
[1736395228102,2.5713,194.54,194.49,2.5717]
[1736395228500,10.14569825,194.57,194.48,1.5178]
[1736395230104,2.5711,194.55,194.5,2.5717]
[1736395230608,10.14569825,194.57,194.48,1.5178]
[1736395231211,2.5712,194.55,194.5,2.5717]
[1736395231513,10.14569825,194.57,194.46,13.14569825]
[1736395232008,2.5714,194.53,194.48,2.5719]
[1736395232709,10.14569825,194.57,194.49,2.5718]
[1736395232710,2.5712,194.54,194.49,2.5718]
[1736395237415,2.5711,194.55,194.49,2.5718]
[1736395238509,2.5711,194.55,194.45,6.0521]
[1736395238510,11.4011,194.55,194.45,6.0521]
[1736395238716,8.83,194.55,194.53,2.5712]
[1736395239410,8.83,194.55,194.46,10.14569825]
[1736395240014,8.83,194.55,194.53,2.5713]
[1736395241518,8.83,194.55,194.54,2.5712]
[1736395242922,10.14569825,194.63,194.58,2.5706]
[1736395243115,2.5703,194.61,194.53,1.4774]
[1736395243515,2.5703,194.61,194.56,2.5708]
[1736395243715,2.5706,194.59,194.53,1.4774]
[1736395244116,13.1306,194.59,194.53,0.4774]
[1736395244316,13.1306,194.59,194.54,2.5712]
[1736395245217,13.1306,194.59,194.53,0.4774]
[1736395245218,13.1306,194.59,194.55,2.5711]
[1736395249125,10.14569825,194.57,194.5,1.4518]
[1736395249325,10.14569825,194.54,194.46,22.95442902]
[1736395249821,10.14569825,194.54,194.46,25.52662902]
[1736395250123,10.14569825,194.54,194.46,4.1257]
[1736395250522,2.5717,194.51,194.47,2.5721]
[1736395251520,2.5715,194.52,194.47,2.5721]
[1736395252120,2.5715,194.52,194.46,1.5535]
[1736395252326,2.5715,194.52,194.48,2.572]
[1736395252917,10.14569825,194.54,194.48,2.572]
[1736395253121,2.5713,194.53,194.48,2.572]
[1736395256530,12.4013,194.53,194.48,2.572]
[1736395260923,2.5715,194.52,194.48,2.572]
[1736395263326,9.83,194.53,194.46,1.5535]
[1736395263327,2.5716,194.51,194.46,2.5722]
[1736395263523,10.14569825,194.51,194.42,1.5349]
[1736395263831,2.5719,194.49,194.44,2.5724]
[1736395264035,3.0,194.48,194.44,2.5724]
[1736395264331,3.0,194.48,194.45,2.5723]
[1736395265028,3.0,194.48,194.46,2.5722]
[1736395265930,3.0,194.48,194.44,2.5724]
[1736395266321,13.14569825,194.48,194.39,8.6997296]
[1736395266529,2.5726,194.44,194.4,2.5729]
[1736395266726,3.0,194.43,194.4,2.5729]
[1736395267623,3.0,194.43,194.41,2.5728]
[1736395268635,3.0,194.43,194.35,1.4701]
[1736395268937,13.14569825,194.43,194.35,1.4701]
[1736395269632,10.14569825,194.4,194.3,28.55105862]
[1736395270231,10.14569825,194.4,194.29,1.5231]
[1736395270535,10.14569825,194.4,194.33,2.5739]
[1736395270536,2.5733,194.38,194.33,2.5739]
[1736395270837,3.0,194.37,194.34,2.5738]
[1736395271538,3.0,194.37,194.29,1.5231]
[1736395271733,3.0,194.37,194.36,2.5736]
[1736395272636,12.71839825,194.43,194.38,2.5732]
[1736395272831,12.71839825,194.43,194.31,10.14569825]
[1736395272832,3.0,194.42,194.31,10.14569825]
[1736395273033,3.0,194.42,194.31,13.14569825]
[1736395273636,8.71,194.42,194.31,13.14569825]
[1736395273836,3.0,194.41,194.37,2.5733]
[1736395275433,3.0,194.41,194.38,2.5733]
[1736395275837,3.0,194.41,194.31,13.14569825]
[1736395276037,3.0,194.41,194.34,10.14569825]
[1736395276337,3.0,194.41,194.39,2.5731]
[1736395276538,5.573,194.41,194.34,10.14569825]
[1736395276838,5.573,194.41,194.36,2.5735]
[1736395277435,3.0,194.41,194.38,2.5732]
[1736395277635,3.0,194.41,194.34,10.14569825]
[1736395278137,8.71,194.42,194.34,10.14569825]
[1736395278639,8.71,194.42,194.41,2.5729]
[1736395282743,11.71,194.42,194.31,28.55105862]
[1736395283039,10.14569825,194.4,194.31,28.55105862]
[1736395283238,10.14569825,194.4,194.29,4.6074]
[1736395283437,12.71879825,194.4,194.35,2.5736]
[1736395283835,12.71879825,194.4,194.29,4.6074]
[1736395284036,10.14569825,194.4,194.36,2.5734]
[1736395285040,10.14569825,194.4,194.37,2.5734]
[1736395286042,11.71,194.42,194.31,10.14569825]
[1736395286340,3.0,194.41,194.31,10.14569825]
[1736395286542,3.0,194.41,194.4,2.573]
[1736395287736,10.14569825,194.43,194.4,2.573]
[1736395287935,7.55,194.41,194.4,2.573]
[1736395294247,11.70639825,194.5,194.44,2.5724]
[1736395294553,3.0,194.49,194.38,6.1087]
[1736395294748,12.71749825,194.5,194.38,7.7105]
[1736395294948,3.0,194.49,194.45,2.5723]
[1736395295452,5.32,194.49,194.45,2.5723]
[1736395295647,5.32,194.49,194.4,10.14569825]
[1736395296151,5.32,194.49,194.48,2.572]
[1736395297248,3.0,194.53,194.43,13.14569825]
[1736395297655,10.14569825,194.56,194.43,13.14569825]
[1736395297850,3.0,194.55,194.43,13.14569825]
[1736395299043,5.5711,194.55,194.5,2.5717]
[1736395301849,10.14569825,194.53,194.4,17.29582785]
[1736395302049,10.14569825,194.5,194.4,28.55105862]
[1736395302249,3.0,194.49,194.4,28.55105862]
[1736395302445,3.0,194.49,194.46,2.5723]
[1736395302647,3.0,194.49,194.4,28.55105862]
[1736395302851,3.0,194.49,194.41,2.5729]
[1736395303059,3.0,194.49,194.38,7.7105]
[1736395303448,3.0,194.49,194.48,2.572]
[1736395304053,13.14569825,194.53,194.4,10.14569825]
[1736395304450,10.14569825,194.53,194.4,10.14569825]
[1736395304650,13.14569825,194.53,194.4,10.14569825]
[1736395305055,13.14569825,194.53,194.49,2.5719]
[1736395305754,2.5715,194.52,194.4,10.14569825]
[1736395306354,13.14569825,194.53,194.4,10.14569825]
[1736395306549,10.14569825,194.5,194.39,3.0]
[1736395306750,10.14569825,194.47,194.38,33.26155862]
[1736395306951,13.14569825,194.47,194.41,2.5729]
[1736395307151,10.14569825,194.44,194.38,28.55105862]
[1736395307458,10.14569825,194.44,194.34,7.1501296]
[1736395307758,10.14569825,194.44,194.38,2.5733]
[1736395308157,10.14569825,194.44,194.41,2.5729]
[1736395308358,13.14569825,194.47,194.34,10.14569825]
[1736395308558,10.14569825,194.44,194.34,10.14569825]
[1736395308761,10.14569825,194.44,194.32,1.5745]
[1736395309161,12.71829825,194.44,194.38,2.5732]
[1736395309456,12.71829825,194.44,194.32,1.5745]
[1736395309663,2.5724,194.46,194.41,2.5728]
[1736395309955,13.14569825,194.47,194.34,10.14569825]
[1736395310151,13.14569825,194.47,194.36,3.0]
[1736395310963,13.14569825,194.47,194.43,2.5726]
[1736395311158,13.14569825,194.47,194.36,3.0]
[1736395311553,13.14569825,194.47,194.4,2.5731]
[1736395311757,13.14569825,194.47,194.37,10.14569825]
[1736395312254,13.14569825,194.47,194.43,2.5726]
[1736395312763,3.0,194.51,194.4,10.14569825]
[1736395312957,3.0,194.51,194.41,7.5709]
[1736395313763,3.0,194.51,194.47,2.5721]
[1736395314964,3.0,194.51,194.41,7.5709]
[1736395315166,3.0,194.51,194.48,2.572]
[1736395316365,3.0,194.51,194.43,10.14569825]
[1736395316566,10.14569825,194.56,194.46,10.14569825]
[1736395316770,10.14569825,194.56,194.46,13.14569825]
[1736395316967,10.14569825,194.59,194.46,13.14569825]
[1736395317168,13.14569825,194.59,194.46,13.14569825]
[1736395317572,10.14569825,194.59,194.56,2.5709]
[1736395319372,10.14569825,194.59,194.55,2.5711]
[1736395320780,10.14569825,194.62,194.56,2.5709]
[1736395321076,10.14569825,194.62,194.49,2.9285]
[1736395321276,3.0,194.61,194.49,2.9285]
[1736395321681,5.5704,194.61,194.55,2.571]
[1736395323280,10.14569825,194.59,194.49,2.9285]
[1736395323483,10.14569825,194.59,194.54,2.5712]
[1736395324178,3.0,194.61,194.49,2.9285]
[1736395324383,3.0,194.61,194.51,10.14569825]
[1736395324989,3.0,194.61,194.56,2.5709]
[1736395325887,3.0,194.61,194.54,2.5711]
[1736395326186,3.0,194.61,194.49,2.9285]
[1736395326487,5.5703,194.61,194.55,2.5709]
[1736395326684,5.5703,194.61,194.49,2.9285]